Cogmind - Beta 13 *** ADVENTURER MODE // 2024.05.19 @ 22:15:47 Player: Blade Result: Destroyed by Y-64 Sentinel with Wave Gun Performance ------------- Evolutions (5) 2500 Regions Visited (10) 2000 Robots Destroyed (38) 190 Value Destroyed (1327) 1327 Prototype IDs (5) 100 Alien Tech Used (0) 0 Bonus (700) 700 TOTAL SCORE: 6817 Bonus ------- Entered Garrisons 200 Used RIF Installer 500 Cogmind --------- Core Integrity 0/1000 Matter 212/300 Energy 84/100 System Corruption 3% Temperature Cool (18) Movement Core (150) Ox2 Location -5/Extension Parts ------- > --- POWER (2) -------- (None) > --- PROPULSION (5) --- (None) > --- UTILITY (8) ------ Enhanced Optical Array ECM Suite > --- WEAPON (2) ------- Heavy Beamcaster > --- INVENTORY (5) ---- VTOL Module Improved Cesium-ion Thruster Advanced Weight Redist. System Improved Signal Interpreter Remote Datajack Peak State ------------ > --- POWER ------------ Light Nuclear Core Light Nuclear Core > --- PROPULSION ------- VTOL Module VTOL Module VTOL Module VTOL Module Improved Cesium-ion Thruster > --- UTILITY ---------- Small Storage Unit Advanced Weight Redist. System Visual Processing Unit Enhanced Optical Array Transport Network Coupler ECM Suite Hacking Suite Advanced Hacking Suite > --- WEAPON ----------- Advanced Plasma Cannon > --- INVENTORY -------- VTOL Module VTOL Module Advanced Weight Redist. System Improved Signal Interpreter Advanced Signal Interpreter Mini Grenade Launcher Remote Datajack [Rating: 49] Favorites ----------- Power Light Nuclear Core Engine Light Ion Engine Power Core Light Nuclear Core Propulsion Flight Unit Leg Aluminum Leg Flight Unit Flight Unit Utility Small Storage Unit Device Advanced Weight Redist. System Storage Small Storage Unit Processor Transport Network Coupler Hackware Hacking Suite Weapon Advanced Beam Cannon Energy Gun Medium Laser Energy Cannon Advanced Beam Cannon Ballistic Gun Assault Rifle Ballistic Cannon Mini Assault Cannon Launcher Mini Grenade Launcher Special Weapon Remote Datajack Slashing Weapon Axe Build | -11 -10 -9 -9 -8 -7 -6 -5 -5 -5 -5 ------- Run | Yrd Mat Mat Min Mat Fac Fac Fac Gar Fac Ext Slots Evolved 10 | . . 2 . 2 2 2 2 . . . Power 1 | . . . . . . 1 . . . . Propulsion 3 | . . 1 . 1 . . 1 . . . Utility 6 | . . 1 . 1 2 1 1 . . . Weapon . | . . . . . . . . . . . Parts Attached 62 | 7 1 7 2 4 2 12 5 8 12 2 Power 10 | 1 . 1 . . . 3 2 2 1 . Engine 2 | 1 . . . . . 1 . . . . Core 8 | . . 1 . . . 2 2 2 1 . Reactor . | . . . . . . . . . . . Propulsion 20 | 2 . 4 . . . 4 . 4 6 . Treads . | . . . . . . . . . . . Leg 2 | 2 . . . . . . . . . . Wheel . | . . . . . . . . . . . Hover . | . . . . . . . . . . . Flight 18 | . . 4 . . . 4 . 4 6 . Utility 15 | 1 . 1 2 2 1 3 1 . 3 1 Device 7 | . . 1 2 . . 1 1 . 1 1 Storage 1 | 1 . . . . . . . . . . Processor 5 | . . . . 1 1 2 . . 1 . Hackware 2 | . . . . 1 . . . . 1 . Protection . | . . . . . . . . . . . Artifact . | . . . . . . . . . . . Weapon 17 | 3 1 1 . 2 1 2 2 2 2 1 Energy Gun 3 | 1 1 . . . . . . . . 1 Energy Cannon 3 | . . 1 . . . . . 1 1 . Ballistic Gun 3 | 2 . . . 1 . . . . . . Ballistic Cannon 2 | . . . . . 1 . . 1 . . Launcher 3 | . . . . . . 1 1 . 1 . Special Weapon 1 | . . . . . . . 1 . . . Impact Weapon . | . . . . . . . . . . . Slashing Weapon 2 | . . . . 1 . 1 . . . . Piercing Weapon . | . . . . . . . . . . . Special Melee Weapon . | . . . . . . . . . . . Unidentified Prototypes 5 | . . 1 1 1 1 . . . 1 . Parts Lost 24 | . . . . . . 5 1 7 11 . Power 5 | . . . . . . 1 . 2 2 . Propulsion 13 | . . . . . . 3 1 3 6 . Utility 5 | . . . . . . 1 . 2 2 . Weapon 1 | . . . . . . . . . 1 . Highest Loss Streak 10 | . . . . . . 5 1 7 10 . To Critical Strikes . | . . . . . . . . . . . Average Slot Usage (%) 76 | . 85 76 84 77 81 84 89 69 70 18 Engine 2 | . 14 1 . . . 2 . . . . Core 6 | . . 9 11 9 7 3 10 8 8 . Leg 3 | . 28 . . . . . . . . . Flight 20 | . . 33 33 27 23 23 21 14 19 . Device 8 | . . 9 18 9 7 9 11 6 6 4 Storage 7 | . 14 11 11 9 7 6 5 5 4 . Processor 9 | . . . . 3 12 18 23 19 14 7 Hackware 3 | . . . . 8 7 6 5 5 9 4 Energy Gun 3 | . 26 . . . . . . . . . Energy Cannon 4 | . . 10 11 9 2 . . 2 3 . Ballistic Cannon 1 | . . . . . 4 6 4 2 . . Naked Turns . | . . . . . . . . . . . Heaviest Build 26 | 12 12 14 14 17 17 22 22 24 26 7 Greatest Support 31 | 20 20 21 21 21 21 25 25 25 31 3 Greatest Overweight (x) 2 | 1 . 1 . . . 1 . 1 . 2 Average Overweight (x) . | . . . . . . . . . . . Largest Inventory Capacity 8 | 8 8 8 8 8 8 8 8 8 8 5 Average Capacity 7 | 7 8 8 8 8 8 8 8 8 7 5 Most Carried 8 | . 7 8 8 8 8 8 8 8 8 5 Average Carried 6 | . 2 7 7 8 8 6 6 7 6 5 Final Capacity 8 | 8 8 8 8 8 8 8 8 8 5 5 Final Carried 8 | . 7 8 8 8 8 7 8 8 5 5 Class Distribution -------------------- 24% | Sprinter 21% | Hacker-Sprinter 21% | Mutant 15% | Hacker-Scout 11% | Hacker-Mutant 6% | Scavenger-Sprinter Dominant Class ---------------- Mutant | -10/Materials Sprinter | -9/Materials Mutant | -9/Mines Hacker-Sprinter | -8/Materials Hacker-Sprinter | -7/Factory Hacker-Sprinter | -6/Factory Hacker-Scout | -5/Factory Scavenger-Sprinter | -5/Garrison Hacker-Sprinter | -5/Factory Mutant | -5/Extension Resources | -11 -10 -9 -9 -8 -7 -6 -5 -5 -5 -5 ----------- Run | Yrd Mat Mat Min Mat Fac Fac Fac Gar Fac Ext Matter Collected 1075 | 226 54 70 . 56 . 278 . 304 87 . Remotely . | . . . . . . . . . . . Salvage Created 1399 | . 167 189 . 185 . 290 . 231 337 . Parts 67 | . 5 11 . 11 . 17 . 14 9 . Haulers Intercepted 3 | . 1 . . 2 . . . . . . Recyclers Shooed 1 | . . . . . . 1 . . . . Parts Field Recycled . | . . . . . . . . . . . Retrieved Matter . | . . . . . . . . . . . Parts Self-Destructed . | . . . . . . . . . . . Prevented . | . . . . . . . . . . . Kills | -11 -10 -9 -9 -8 -7 -6 -5 -5 -5 -5 ------- Run | Yrd Mat Mat Min Mat Fac Fac Fac Gar Fac Ext Combat Hostiles Destroyed 31 | . 2 4 . 2 . 11 . 9 3 . Guns 1 | . 1 . . . . . . . . . Cannons 21 | . . 4 . 2 . 5 . 9 1 . AOE 6 | . . . . . . 6 . . . . Classes Destroyed 9 | . 2 1 . . . 2 . 1 3 . Worker 2 | . . . . . . . . . 2 . Builder 1 | . . . . . . . . . 1 . Hauler 3 | . 1 . . 2 . . . . . . Recycler 1 | . . . . . . . . . 1 . Swarmer 11 | . . . . . . 6 . 5 . . Grunt 12 | . 2 2 . 2 . 3 . . 3 . Duelist 1 | . . . . . . 1 . . . . Sentry 5 | . . 2 . . . 1 . 2 . . Hunter 2 | . . . . . . . . 2 . . Best Kill Streak 9 | . 3 3 . 3 . 7 . 9 6 . Combat Bots Only 9 | . 2 3 . 1 . 7 . 9 2 . Max Kills in Single Turn 3 | . 1 1 . 1 . 3 . 1 2 . Gunslinging . | . . . . . . . . . . . Exploded 3 | . . . . . . 3 . . . . Melee . | . . . . . . . . . . . Uniques/NPCs Destroyed . | . . . . . . . . . . . Combat | -11 -10 -9 -9 -8 -7 -6 -5 -5 -5 -5 -------- Run | Yrd Mat Mat Min Mat Fac Fac Fac Gar Fac Ext Hostile Shots Fired 273 | . 25 12 4 20 . 45 22 68 58 19 Missed 88 | . 7 8 . 13 . 17 12 15 11 5 Damage Taken 2746 | . 201 43 23 88 . 352 179 776 829 255 Core 1241 | . 61 37 5 65 . 70 109 273 387 234 Absorbed by Shields . | . . . . . . . . . . . Ignored by Resistances 771 | . 59 12 8 25 . 99 48 220 231 69 Core Remaining (%) 90 | 100 75 . 89 88 100 91 . . . . Volleys Fired 109 | . 8 5 . 14 . 30 4 34 14 . Largest 2 | . 2 1 . 1 . 2 1 1 1 . Hottest 100 | . 100 68 . 68 . 78 5 98 98 . Shots Fired 121 | . 16 5 . 14 . 34 4 34 14 . Gun 16 | . 16 . . . . . . . . . Cannon 95 | . . 5 . 14 . 30 . 34 12 . Launcher 6 | . . . . . . 4 . . 2 . Special 4 | . . . . . . . 4 . . . Kinetic 61 | . . . . . . 30 . 31 . . Thermal 50 | . 16 5 . 14 . . . 3 12 . Explosive 6 | . . . . . . 4 . . 2 . Electromagnetic . | . . . . . . . . . . . Robot Hit Streak 33 | . 11 7 . 9 . 19 23 29 33 . Robot Miss Streak 2 | . 2 . . 1 . 2 . 1 1 . Penetration Max . | . . . . . . . . . . . Secondary Targets . | . . . . . . . . . . . Shots Hit Robots 105 | . 13 5 . 11 . 29 4 30 13 . Core Hits 68 | . 5 4 . 6 . 19 . 17 17 . Critical Kills 2 | . . . . . . . . . 2 . Critical Parts Destroyed . | . . . . . . . . . . . Critical Strikes 4 | . 2 . . . . . . . 2 . Burn 2 | . 2 . . . . . . . . . Meltdown 2 | . . . . . . . . . 2 . Melee Attacks . | . . . . . . . . . . . Impact . | . . . . . . . . . . . Slashing . | . . . . . . . . . . . Piercing . | . . . . . . . . . . . Sneak Attacks . | . . . . . . . . . . . Combat Hostiles . | . . . . . . . . . . . Follow-up Attacks . | . . . . . . . . . . . Damage Inflicted 3166 | . 166 102 . 226 . 1084 13 741 834 . Guns 166 | . 166 . . . . . . . . . Cannons 2105 | . . 102 . 226 . 672 . 741 364 . Explosions 882 | . . . . . . 412 . . 470 . Melee . | . . . . . . . . . . . Ramming 13 | . . . . . . . 13 . . . Kinetic 1413 | . . . . . . 672 . 741 . . Thermal 858 | . 166 102 . 226 . . . . 364 . Explosive 882 | . . . . . . 412 . . 470 . Electromagnetic . | . . . . . . . . . . . Impact . | . . . . . . . . . . . Slashing . | . . . . . . . . . . . Piercing . | . . . . . . . . . . . Highest Corruption 3 | . . . . . . . 2 2 3 3 Average Corruption 2 | . . . . . . . 1 2 2 3 Corruption Purged . | . . . . . . . . . . . Corruption Blocked . | . . . . . . . . . . . Effects 12 | . . . . . . . 2 3 5 2 Message Errors 2 | . . . . . . . . . 1 1 Matter Fused 3 | . . . . . . . . 1 1 1 Heat Flow Errors 1 | . . . . . . . . 1 . . Energy Discharges 3 | . . . . . . . 1 . 2 . Data Loss (major) 2 | . . . . . . . 1 1 . . Alerts 1 | . . . . . . . . . 1 . Overload Shots . | . . . . . . . . . . . Overflow Damage 27 | . . . . . . 5 . . 22 . Projectiles . | . . . . . . . . . . . Explosions 27 | . . . . . . 5 . . 22 . Melee . | . . . . . . . . . . . Knockbacks 5 | . . . . . . 5 . . . . Impact . | . . . . . . . . . . . Kinetic 5 | . . . . . . 5 . . . . Secondary . | . . . . . . . . . . . Self-Inflicted Damage 61 | . . . . . . . 6 . 55 . Shots 2 | . . . . . . . . . 2 . Rammed 1 | . . . . . . . 1 . . . Targets Rammed 1 | . . . . . . . 1 . . . Kicked . | . . . . . . . . . . . Crushed . | . . . . . . . . . . . Highest Temperature 543 | . 262 73 . 223 . 33 . 328 543 . Average Temperature 112 | . 145 33 . 118 . 14 . 87 154 . Received Heat Transfer 678 | . 132 9 . 36 . 138 27 81 192 63 Effects 10 | . . . . . . . . 1 9 . Shutdowns 3 | . . . . . . . . 1 2 . Energy Bleed 1 | . . . . . . . . . 1 . Interference 3 | . . . . . . . . . 3 . Short Circuit 1 | . . . . . . . . . 1 . Damage (major) 2 | . . . . . . . . . 2 . Siege Activations . | . . . . . . . . . . . Robots Corrupted . | . . . . . . . . . . . Combat Hostiles . | . . . . . . . . . . . Parts Fried . | . . . . . . . . . . . Impact Corruptions . | . . . . . . . . . . . Robots Melted 3 | . 1 . . . . . . . 2 . Combat Hostiles 3 | . 1 . . . . . . . 2 . Parts Melted 4 | . 2 . . . . . . . 2 . Heat Transferred 1771 | . 629 185 . 407 . . . . 550 . Parts Sabotaged . | . . . . . . . . . . . Parts Stolen . | . . . . . . . . . . . Parts Stripped . | . . . . . . . . . . . Power Chain Reactions . | . . . . . . . . . . . Alert | -11 -10 -9 -9 -8 -7 -6 -5 -5 -5 -5 ------- Run | Yrd Mat Mat Min Mat Fac Fac Fac Gar Fac Ext Peak Influence 333 | . 76 276 90 203 85 333 149 273 254 102 Initial 124 | . . 27 90 29 78 35 108 78 124 102 Average 118 | . 22 86 90 123 80 193 129 199 181 102 Maximum Alert Level 1 | . . 1 . 1 . 1 . 1 1 . Low Security (%) 78 | 100 100 92 100 82 100 47 100 35 52 100 Level 1 21 | . . 7 . 17 . 52 . 64 47 . Level 2 . | . . . . . . . . . . . Level 3 . | . . . . . . . . . . . Level 4 . | . . . . . . . . . . . Level 5 . | . . . . . . . . . . . High Security . | . . . . . . . . . . . Max Security . | . . . . . . . . . . . Squads Dispatched 7 | . . 4 . . . 1 . . 2 . Investigation 1 | . . . . . . . . . 1 . Extermination 1 | . . . . . . 1 . . . . Reinforcement 5 | . . 4 . . . . . . 1 . Assault . | . . . . . . . . . . . Garrison . | . . . . . . . . . . . Intercept . | . . . . . . . . . . . Searches Triggered . | . . . . . . . . . . . Construction Impeded 1 | . . . . . . . . . 1 . Haulers Reinforced . | . . . . . . . . . . . Active Scanning Responses . | . . . . . . . . . . . Cargo Convoy Interrupts . | . . . . . . . . . . . Stealth | -11 -10 -9 -9 -8 -7 -6 -5 -5 -5 -5 --------- Run | Yrd Mat Mat Min Mat Fac Fac Fac Gar Fac Ext Distress Signals 3 | . . 1 . . . 2 . . . . Communications Jammed . | . . . . . . . . . . . Distress Signals . | . . . . . . . . . . . Times Spotted 68 | . 3 11 2 7 . 19 4 10 9 3 Peak Tracking Total 11 | . 2 6 2 3 . 9 4 11 7 3 Tactical Retreats 6 | . . . . 1 . 3 . 1 1 . Traps | -11 -10 -9 -9 -8 -7 -6 -5 -5 -5 -5 ------- Run | Yrd Mat Mat Min Mat Fac Fac Fac Gar Fac Ext Traps Triggered 8 | . 1 . . . . . . 3 2 2 Indirectly . | . . . . . . . . . . . Trap Hack Attempts . | . . . . . . . . . . . Triggered . | . . . . . . . . . . . Disarmed . | . . . . . . . . . . . Reprogrammed . | . . . . . . . . . . . Reused . | . . . . . . . . . . . Traps Extracted . | . . . . . . . . . . . Installed 1 | . . . 1 . . . . . . . Triggered . | . . . . . . . . . . . Most Traps Carried 1 | . . . 1 . . . . . . . Machines | -11 -10 -9 -9 -8 -7 -6 -5 -5 -5 -5 ---------- Run | Yrd Mat Mat Min Mat Fac Fac Fac Gar Fac Ext Machines Disabled 1 | . . . . . . 1 . . . . Max in Single Turn 1 | . . . . . . 1 . . . . Machines Repaired . | . . . . . . . . . . . Machines Dismantled . | . . . . . . . . . . . Machines Sabotaged . | . . . . . . . . . . . Overloaded Fab Kills . | . . . . . . . . . . . Hacking | -11 -10 -9 -9 -8 -7 -6 -5 -5 -5 -5 --------- Run | Yrd Mat Mat Min Mat Fac Fac Fac Gar Fac Ext Machines Accessed 18 | . 2 4 1 1 1 2 2 2 3 . Terminals 13 | . 1 3 . 1 1 2 1 2 2 . Fabricators . | . . . . . . . . . . . Repair Stations . | . . . . . . . . . . . Recycling Units 3 | . 1 1 . . . . . . 1 . Scanalyzers . | . . . . . . . . . . . Garrison Access 1 | . . . . . . . 1 . . . Total Hacks 36 | . 6 9 1 2 2 6 2 2 6 . Successful 25 | . 4 7 1 1 2 2 2 2 4 . Failed 11 | . 2 2 . 1 . 4 . . 2 . Catastrophic 2 | . . . . 1 . . . . 1 . Database Lockouts . | . . . . . . . . . . . Manual 8 | . 3 2 . . 1 2 . . . . Terminals 26 | . 3 7 . 2 2 6 1 2 3 . Fabricators . | . . . . . . . . . . . Repair Stations . | . . . . . . . . . . . Recycling Units 8 | . 3 2 . . . . . . 3 . Scanalyzers . | . . . . . . . . . . . Garrison Access 1 | . . . . . . . 1 . . . Terminal Hacks 17 | . 1 5 1 1 2 2 1 2 2 . Record 4 | . . 1 . 1 . . . . 2 . Open Door 1 | . . . 1 . . . . . . . Level Access Points 1 | . . . . . 1 . . . . . Branch Access Points 1 | . . 1 . . . . . . . . Emergency Access Points 3 | . 1 1 . . . . . 1 . . Garrison Index 1 | . . . . . . . 1 . . . Alert Level 1 | . . . . . . 1 . . . . Unreport Threat 1 | . . . . . . 1 . . . . Locate Traps 1 | . . 1 . . . . . . . . Zone Layout 2 | . . 1 . . 1 . . . . . Garrison Registry 1 | . . . . . . . . 1 . . Fabricator Hacks . | . . . . . . . . . . . Repair Station Hacks . | . . . . . . . . . . . Recycling Unit Hacks 7 | . 3 2 . . . . . . 2 . Process 1 | . 1 . . . . . . . . . Report Inventory 3 | . 1 1 . . . . . . 1 . Retrieve Matter 2 | . 1 . . . . . . . 1 . Retrieve Components 1 | . . 1 . . . . . . . . Scanalyzer . | . . . . . . . . . . . Garrison Access Hacks 1 | . . . . . . . 1 . . . Unlock Access 1 | . . . . . . . 1 . . . Unauthorized Hacks . | . . . . . . . . . . . Terminals . | . . . . . . . . . . . Fabricators . | . . . . . . . . . . . Repair Stations . | . . . . . . . . . . . Recycling Units . | . . . . . . . . . . . Scanalyzers . | . . . . . . . . . . . Garrison Access . | . . . . . . . . . . . Data Cores Recovered . | . . . . . . . . . . . Used . | . . . . . . . . . . . Hacking Detections 15 | . 1 4 . 1 1 2 2 1 3 . Full Trace Events 1 | . . . . . . . . . 1 . Feedback Events 1 | . . . . . . . . . 1 . Corruption 1 | . . . . . . . . . 1 . Feedback Blocked . | . . . . . . . . . . . Robot Schematics Acquired . | . . . . . . . . . . . Robots Built . | . . . . . . . . . . . Authchips . | . . . . . . . . . . . Time . | . . . . . . . . . . . Total Robot Build Rating . | . . . . . . . . . . . Part Schematics Acquired . | . . . . . . . . . . . Parts Built . | . . . . . . . . . . . Authchips . | . . . . . . . . . . . Time . | . . . . . . . . . . . Total Part Build Rating . | . . . . . . . . . . . Parts Repaired . | . . . . . . . . . . . Time . | . . . . . . . . . . . Parts Recycled . | . . . . . . . . . . . Recycled Matter 123 | . 123 . . . . . . . . . Retrieved Matter 123 | . 123 . . . . . . . . . Retrieved Components 1 | . . 1 . . . . . . . . Parts Scanalyzed . | . . . . . . . . . . . Part Schematics Acquired . | . . . . . . . . . . . Parts Damaged . | . . . . . . . . . . . Bothacking | -11 -10 -9 -9 -8 -7 -6 -5 -5 -5 -5 ------------ Run | Yrd Mat Mat Min Mat Fac Fac Fac Gar Fac Ext Used RIF Installer 1 | . . . . . . . . 1 . . Robots Hacked . | . . . . . . . . . . . Non-combat . | . . . . . . . . . . . Combat . | . . . . . . . . . . . Robot Hacks Applied . | . . . . . . . . . . . Relay Couplers Released . | . . . . . . . . . . . Fabnet Peak Effective % . | . . . . . . . . . . . Robots Rewired 1 | . . . . . . . 1 . . . Allies Hacked . | . . . . . . . . . . . Hacks Repelled . | . . . . . . . . . . . Allies | -11 -10 -9 -9 -8 -7 -6 -5 -5 -5 -5 -------- Run | Yrd Mat Mat Min Mat Fac Fac Fac Gar Fac Ext Total Allies 1 | . . . . . . . 1 . . . Largest Group 1 | . . . . . . . 1 . . . Highest-Rated Group 49 | . . . . . . . 49 . . . Highest-Rated Ally 49 | . . . . . . . 49 . . . Total Orders 2 | . . . 1 . . . 1 . . . GUARD 1 | . . . . . . . 1 . . . EXPLORE 1 | . . . 1 . . . . . . . Ally Attacks 3 | . . . . . . . 3 . . . Total Damage 83 | . . . . . . . 83 . . . Kills . | . . . . . . . . . . . Allies Corrupted 1 | . . . . . . . 1 . . . Allies Melted . | . . . . . . . . . . . Intel | -11 -10 -9 -9 -8 -7 -6 -5 -5 -5 -5 ------- Run | Yrd Mat Mat Min Mat Fac Fac Fac Gar Fac Ext Robot Analysis Total . | . . . . . . . . . . . Derelict Logs Recovered 1 | . . . 1 . . . . . . . Drone Launches 20 | . . . 20 . . . . . . . Drone Recoveries 11 | . . . 11 . . . . . . . Exploration | -11 -10 -9 -9 -8 -7 -6 -5 -5 -5 -5 ------------- Run | Yrd Mat Mat Min Mat Fac Fac Fac Gar Fac Ext Turns Passed 2040 | 83 257 391 139 178 30 282 167 221 196 96 Spaces Moved 3246 | 63 185 387 253 373 82 589 499 231 448 136 Core 213 | 6 . . . . . . . 3 68 136 Treads . | . . . . . . . . . . . Legs 242 | 57 185 . . . . . . . . . Wheels . | . . . . . . . . . . . Hover . | . . . . . . . . . . . Flight 2791 | . . 387 253 373 82 589 499 228 380 . Fastest Speed 23 | 50 120 32 32 32 32 29 29 26 23 50 Average Speed 38 | 114 120 32 32 32 32 29 29 30 28 52 Slowest Speed 150 | 120 120 112 32 32 32 109 32 114 50 150 Overloaded Moves . | . . . . . . . . . . . Propulsion Burnouts . | . . . . . . . . . . . Robots Hopped 35 | . . 7 1 8 . 2 6 . 11 . Cave-ins Triggered . | . . . . . . . . . . . Exploration Rate (%) 25 | 4 27 34 83 30 1 20 18 34 14 13 Regions Visited 10 Branch Regions 2 Pre-discovered Areas 1 | . . . 1 . . . . . . . Known Exits Taken 4 | . . 1 . . 1 1 1 . . . Unknown Exits Taken 5 | 1 1 . 1 1 . . . . 1 . Scrap Searched 1 | . . . 1 . . . . . . . Spaces Dug . | . . . . . . . . . . . Terrain Destroyed 32 | . . . . . . 17 . . 15 . Melee . | . . . . . . . . . . . Projectile 2 | . . . . . . 1 . . 1 . AOE 30 | . . . . . . 16 . . 14 . Terrain Rammed . | . . . . . . . . . . . Walls Destroyed . | . . . . . . . . . . . Machines Disabled . | . . . . . . . . . . . Actions | -11 -10 -9 -9 -8 -7 -6 -5 -5 -5 -5 --------- Run | Yrd Mat Mat Min Mat Fac Fac Fac Gar Fac Ext Total 3875 | 70 204 641 309 408 84 657 508 348 486 160 Wait 384 | . 1 237 51 23 . 19 1 14 22 16 Move 3166 | 62 184 373 250 356 81 584 486 229 425 136 Hop 34 | . . 6 1 8 . 2 6 . 11 . Pick Up 30 | . 8 6 2 1 . 5 3 5 . . Fast Attach 35 | 7 1 1 . 4 2 5 . 4 9 2 Attach 16 | . . 1 1 . . 5 4 3 2 . Detach 5 | . . 1 . . . 1 2 1 . . Swap 11 | . . 5 1 . . 2 1 1 1 . Drop 23 | 1 2 6 2 2 1 4 . 3 2 . Fire 109 | . 8 5 . 14 . 30 4 34 14 . Melee . | . . . . . . . . . . . Ram 1 | . . . . . . . 1 . . . Kick . | . . . . . . . . . . . Crush . | . . . . . . . . . . . Escape Stasis 54 | . . . . . . . . 54 . . Rewire 6 | . . . . . . . . . . 6 Trap 1 | . . . 1 . . . . . . . Miscellaneous . | . . . . . . . . . . . Route ------- -11/Scrapyard -10/Materials -9/Materials -9/Mines (discovered 2 exits: *Mat x2) -8/Materials -7/Factory (discovered 5 exits: *Fac x4 / [*Low]) -6/Factory -5/Factory -5/Garrison (discovered 3 exits: *Fac x3) -5/Factory -5/Extension History --------- Turn | Location | Event 10 | -11/Scrapyard | Discovered new exit (range 15) 84 | -11/Scrapyard | Entered Materials 304 | -10/Materials | Build established: Mutant 335 | -10/Materials | Discovered new exit (range 4) 341 | -10/Materials | Entered another Materials area 341 | -9/Materials | Evolved 2 slots: Propulsion x1, Utility x1 641 | -9/Materials | Build established: Sprinter 717 | -9/Materials | Identified exit to Mines 732 | -9/Materials | Entered Mines 755 | -9/Mines | Found a hidden stash of uninstalled traps 766 | -9/Mines | Discovered new exit (range 8) 772 | -9/Mines | Discovered new exit (range 14) 790 | -9/Mines | Learned location of Storage (-8) 797 | -9/Mines | Found the Drone Emporium 798 | -9/Mines | Found Prototype Device 800 | -9/Mines | Identified Sensor Drone Bay 871 | -9/Mines | Entered Materials 871 | -8/Materials | Evolved 2 slots: Propulsion x1, Utility x1 914 | -8/Materials | Discovered new exit (range 16) 1049 | -8/Materials | Entered Factory 1049 | -7/Factory | Evolved 2 slots: Utility x2 1060 | -7/Factory | Discovered new exit (range 8) 1060 | -7/Factory | Discovered new exit (range 15) 1069 | -7/Factory | Identified exit to Factory 1079 | -7/Factory | Entered another Factory area 1079 | -6/Factory | Evolved 2 slots: Power x1, Utility x1 1174 | -6/Factory | Build established: Hacker-Sprinter 1266 | -6/Factory | Destroyed 7 combat bots 1272 | -6/Factory | Lost 5 parts (1p3n1u) 1351 | -6/Factory | Discovered new exit (range 18) 1357 | -6/Factory | Identified exit to Factory 1361 | -6/Factory | Entered another Factory area 1361 | -5/Factory | Evolved 2 slots: Propulsion x1, Utility x1 1527 | -5/Factory | Identified exit to Garrison 1528 | -5/Factory | Entered Garrison 1534 | -5/Garrison | Discovered new exit (range 44) 1534 | -5/Garrison | Discovered new exit (range 57) 1534 | -5/Garrison | Discovered new exit (range 42) 1550 | -5/Garrison | Build established: Hacker-Scout 1655 | -5/Garrison | Destroyed 9 combat bots 1658 | -5/Garrison | Lost 7 parts (2p3n2u) 1719 | -5/Garrison | Installed Relay Interface Framework 1734 | -5/Garrison | Triggered checkpoint 1749 | -5/Garrison | Identified exit to Factory 1749 | -5/Garrison | Entered Factory 1899 | -5/Factory | Core integrity fell below 50% 1938 | -5/Factory | Discovered new exit (range 15) 1945 | -5/Factory | Entered Extension 1970 | -5/Extension | Lost 10 parts (2p5n2u1w) 2009 | -5/Extension | Core integrity fell below 20% 2041 | -5/Extension | Destroyed by Y-64 Sentinel with Wave Gun Last Messages --------------- 01987_ Arcs of energy rise from the floor. 01987_ ECM Suite blown off. 01987_ Adv. Hacking Suite blown off. 01988_ Triggered Segregator Trap. 01988_ Arcs of energy rise from the floor. 01988_ Hacking Suite blown off. 01988_ Visual Processing Unit blown off. 01990_ U-05 Engineer lays Concrete. 01992_ Acquired ECM Suite. 02008_ Y-64 Sentinel springs to life. 02008_ Penetrated by Slug. 02008_ Y-64 Sentinel springs to life. 02011_ Penetrated by Slug. 02029_ Slug penetrates Wall. 02030_ Attempting to rewire 2V-XVY(b). 02032_ Penetrated by Slug. 02033_ Acquired Hvy. Beamcaster. 02035_ Penetrated by Slug. 02038_ Attempting to rewire 5P-7VC(h). 02041_ Slug penetrates Wall. Map ----- +----------------------------------------------------+ | | | | | | | | | | | | | | | | | | | | | | | | | | | | | | | | | | | | | | | ???????????????????????????????????????????????? | | ???????????????????????????????????????????????? | | ???????????????????????????????????????????????? | | ???????????????????????????????????????????????? | | ???????????????????########????????????????????? | | ?????????????####### / #????????????????????? | | ?????????????# # @ #????????????????????? | | ?????????????# # gh #????????????????????? | | ?????????????# #] gbY #??????????? ???????? | | ???????????### # Y #???????### ???????? | | ???????????# + #?????? ??????? | | ???????????# ###w##+#????? ??????? | | ?????####### #?# ##### #?????? | | ?????# #?# ?????? | | ?????# ^^ #?# ?????? | | ?????# ^ ### ?????? | | ?????# ^ ?????? | | ?????# ##################################??????? | | ?????# #???????????????????????????????????????? | | ?????# #???????????????????????????????????????? | | ?????# #???????????????????????????????????????? | | ?????# #???????????????????????????????????????? | | ?????# #???????????????????????????????????????? | | ?????# #???????????????????????????????????????? | | ?????# #???????????????????????????????????????? | | ?????# #???????????????????????????????????????? | | ?????# #???????????????????????????????????????? | | ?????# #???????????????????????????????????????? | | ?????# #???????????????????????????????????????? | | ?????# #???????????????????????????????????????? | | ?????# #???????????????????????????????????????? | +----------------------------------------------------+ Best States ------------- Heat Dissipation 40 Energy Generation 27 Energy Capacity 220 Matter Stores 300 Matter Capacity 300 Sight Range 22 Robot Scan Range 16 Terrain Scan Density 10 ECM Strength 1 Additional Mass Support 9 Resistance: KI 20 Resistance: TH 20 Resistance: EX 20 Resistance: EM 20 Resistance: I 20 Resistance: S 20 Resistance: P 20 Evasion (%) 65 Targeting Accuracy 6 Offensive Hacking 34 Item Schematics ----------------- None Robot Schematics ------------------ None Fabricated ------------ Nothing Alien Tech Used ----------------- None Achievements -------------- None Challenges ------------ None Game ------ Seed CatalystSpliceShielding Manual? 0 Play Time 00:49:29 Cumulative 26.7 hours Start 2024.05.19 @ 21:12:55 End 2024.05.19 @ 22:15:47 Sessions 1 Manual Loads 0 Difficulty Adventurer Special Mode None Game No. 35 Rogue 0 Adventurer 30 Explorer 5 Win Type - Total 1 Types 1/0/0/0/0/0/0/0/0 Lore% 21 Gallery% 33 Achievement% 28 Wizard Run 0 Options --------- Layout 1 ASCII 0 Keyboard 0 Movement Arrows Keybinds 0 Fullscreen 2 Font 24/Terminus Map View 50x35 Zoom Use 0% Tactical HUD 1 Map Filters NONE Filters NONE Steam 1 RUN: 266620e0-b8e2-4979-81d9-39ffcdca2b3d